[Event "Esbjerg Efterår 2024 - Esbjergmesterskabet"]
[Site "Esbjerg, Denmark"]
[Date "2024.10.18"]
[Round "1.8"]
[White "Hansen, Simon"]
[Black "Rossen, Claus"]
[Result "0-1"]
[TimeControl "1.-3. 20 min + 5 sek, 4.-7. 90 min + 30 sek + 15 min efter 40 træk"]
[WhiteElo "1803"]
[BlackElo "2072"]

1. d4 {[%clk 00:20:06]} {[%emt 00:00:03]} Nf6 {[%clk 00:20:04]} {[%emt
00:00:06]} 2. c4 {[%clk 00:20:09]} {[%emt 00:00:03]} g6 {[%clk 00:20:04]}
{[%emt 00:00:05]} 3. Nc3 {[%clk 00:20:03]} {[%emt 00:00:11]} d5 {[%clk
00:20:06]} {[%emt 00:00:02]} 4. cxd5 {[%clk 00:19:50]} {[%emt 00:00:19]} Nxd5
{[%clk 00:20:06]} {[%emt 00:00:04]} 5. e4 {[%clk 00:19:45]} {[%emt 00:00:11]}
Nxc3 {[%clk 00:20:07]} {[%emt 00:00:04]} 6. bxc3 {[%clk 00:19:47]} {[%emt
00:00:03]} Bg7 {[%clk 00:20:10]} {[%emt 00:00:02]} 7. Bc4 {[%clk 00:19:34]}
{[%emt 00:00:18]} c5 {[%clk 00:20:10]} {[%emt 00:00:06]} 8. Be3 {[%clk
00:19:08]} {[%emt 00:00:31]} O-O {[%clk 00:20:09]} {[%emt 00:00:05]} 9. Ne2
{[%clk 00:19:11]} {[%emt 00:00:03]} Nc6 {[%clk 00:19:52]} {[%emt 00:00:22]} 10.
O-O {[%clk 00:18:00]} {[%emt 00:01:16]} Bd7 {[%clk 00:19:49]} {[%emt 00:00:07]}
11. Rc1 {[%clk 00:16:39]} {[%emt 00:01:26]} a6 {[%clk 00:19:36]} {[%emt
00:00:19]} 12. dxc5 {[%clk 00:13:21]} {[%emt 00:03:23]} Na5 {[%clk 00:19:19]}
{[%emt 00:00:21]} 13. Bb3 {[%clk 00:11:39]} {[%emt 00:01:48]} Qc7 {[%clk
00:17:40]} {[%emt 00:01:43]} 14. Qc2 {[%clk 00:09:29]} {[%emt 00:02:15]} Rfd8
{[%clk 00:16:14]} {[%emt 00:01:30]} 15. f4 {[%clk 00:07:01]} {[%emt 00:02:34]}
Bb5 {[%clk 00:15:07]} {[%emt 00:01:12]} 16. c4 {[%clk 00:04:18]} {[%emt
00:02:49]} Bc6 {[%clk 00:14:53]} {[%emt 00:00:18]} 17. e5 {[%clk 00:02:58]}
{[%emt 00:01:26]} f6 {[%clk 00:11:59]} {[%emt 00:02:58]} 18. Nd4 {[%clk
00:02:17]} {[%emt 00:00:47]} Qc8 {[%clk 00:12:02]} {[%emt 00:00:02]} 19. Nxc6
{[%clk 00:01:32]} {[%emt 00:00:51]} Nxc6 {[%clk 00:11:53]} {[%emt 00:00:13]} 20.
exf6 {[%clk 00:01:18]} {[%emt 00:00:20]} Bxf6 {[%clk 00:11:49]} {[%emt
00:00:08]} 21. Rcd1 {[%clk 00:00:52]} {[%emt 00:00:32]} Qe6 {[%clk 00:09:34]}
{[%emt 00:02:19]} 22. Qf2 {[%clk 00:00:53]} {[%emt 00:00:04]} Kg7 {[%clk
00:08:29]} {[%emt 00:01:10]} 23. Kh1 {[%clk 00:00:57]} {[%emt 00:00:02]} Nb4
{[%clk 00:07:14]} {[%emt 00:01:20]} 24. h3 {[%clk 00:00:49]} {[%emt 00:00:13]}
a5 {[%clk 00:07:05]} {[%emt 00:00:14]} 25. f5 {[%clk 00:00:23]} {[%emt
00:00:31]} Qxf5 {[%clk 00:06:54]} {[%emt 00:00:16]} 26. Qxf5 {[%clk 00:00:23]}
{[%emt 00:00:05]} gxf5 {[%clk 00:06:56]} {[%emt 00:00:02]} 27. Rxd8 {[%clk
00:00:22]} {[%emt 00:00:06]} Rxd8 {[%clk 00:06:59]} {[%emt 00:00:02]} 28. Rxf5
{[%clk 00:00:14]} {[%emt 00:00:14]} Rd3 {[%clk 00:06:38]} {[%emt 00:00:26]} 29.
Bg5 {[%clk 00:00:14]} {[%emt 00:00:06]} Kg6 {[%clk 00:06:34]} {[%emt 00:00:08]}
30. Bxf6 {[%clk 00:00:12]} {[%emt 00:00:08]} Kxf5 {[%clk 00:06:36]} {[%emt
00:00:03]} 31. Bxe7 {[%clk 00:00:15]} {[%emt 00:00:02]} Re3 {[%clk 00:06:32]}
{[%emt 00:00:09]} 32. Bd6 {[%clk 00:00:15]} {[%emt 00:00:05]} Re2 {[%clk
00:06:26]} {[%emt 00:00:10]} 33. Kg1 {[%clk 00:00:06]} {[%emt 00:00:14]} Nd3
{[%clk 00:06:23]} {[%emt 00:00:07]} 34. Bc7 {[%clk 00:00:07]} {[%emt 00:00:05]}
Nxc5 {[%clk 00:06:24]} {[%emt 00:00:04]} 35. Bxa5 {[%clk 00:00:10]} {[%emt
00:00:01]} Ke4 {[%clk 00:06:18]} {[%emt 00:00:11]} 36. Bc3 {[%clk 00:00:13]}
{[%emt 00:00:03]} Kd3 {[%clk 00:06:12]} {[%emt 00:00:10]} 37. Bf6 {[%clk
00:00:09]} {[%emt 00:00:09]} Ne4 {[%clk 00:06:10]} {[%emt 00:00:07]} 38. Bd8
{[%clk 00:00:07]} {[%emt 00:00:08]} Nc5 {[%clk 00:06:10]} {[%emt 00:00:04]} 39.
Kf1 {[%clk 00:00:09]} {[%emt 00:00:04]} Nxb3 {[%clk 00:06:09]} {[%emt
00:00:06]} 40. axb3 {[%clk 00:00:12]} {[%emt 00:00:01]} Rb2 {[%clk 00:06:12]}
{[%emt 00:00:01]} 41. c5 {[%clk 00:00:11]} {[%emt 00:00:06]} Rxb3 {[%clk
00:06:16]} {[%emt 00:00:02]} 42. Be7 {[%clk 00:00:15]} {[%emt 00:00:01]} Ke3
{[%clk 00:06:18]} {[%emt 00:00:02]} 43. h4 {[%clk 00:00:10]} {[%emt 00:00:10]}
Rb1# {[%emt 00:00:03]} 0-1